bitfinex/quotes_ETHUSD_20250814
["timestamp","ask_amount","ask_price","bid_price","bid_amount"]
[1755141288196,14.5,4748.2,4747.8,3.33]
[1755141288537,0.9359,4748.1,4747.8,3.33]
[1755141288911,0.9359,4748.0,4747.8,3.33]
[1755141289113,14.5,4748.2,4747.8,3.33]
[1755141289317,0.9359,4747.9,4747.8,3.33]
[1755141290131,0.9359,4747.9,4747.8,3.328]
[1755141292823,15.4359,4747.9,4747.8,3.328]
[1755141293134,15.4359,4747.9,4747.7,0.75075898]
[1755141293333,15.4359,4747.9,4747.3,1.1279846]
[1755141293334,14.5,4747.9,4747.8,3.323]
[1755141293537,15.4615,4747.9,4747.8,3.323]
[1755141295526,15.4615,4747.9,4747.6,0.75075898]
[1755141295725,17.36430579,4748.3,4747.8,3.319]
[1755141295918,17.36430579,4748.3,4747.9,3.318]
[1755141296237,15.4615,4748.2,4748.0,3.318]
[1755141296422,14.5,4748.2,4748.0,3.318]
[1755141296601,0.9615,4748.1,4748.0,3.318]
[1755141297235,15.4615,4748.1,4748.0,3.318]
[1755141298515,15.4615,4748.1,4747.5,0.75075898]
[1755141298719,0.9615,4748.0,4747.6,3.315]
[1755141298911,0.9615,4748.0,4747.7,3.314]
[1755141299108,0.9615,4747.9,4747.7,3.314]
[1755141299427,14.5,4748.1,4747.7,3.314]
[1755141299428,0.9615,4747.8,4747.7,3.314]
[1755141300908,0.9615,4747.8,4747.4,0.75075898]
[1755141301138,0.4719,4747.7,4747.5,3.311]
[1755141301923,0.4896,4747.8,4747.5,3.311]
[1755141302135,0.9615,4747.7,4747.5,3.311]
[1755141302314,17.85390579,4748.3,4747.5,3.311]
[1755141302512,0.4719,4748.0,4747.5,3.311]
[1755141302710,0.9615,4747.9,4747.5,3.311]
[1755141303024,0.4719,4747.8,4747.5,3.311]
[1755141303220,0.4719,4747.7,4747.5,3.311]
[1755141303414,0.4719,4747.6,4747.5,3.311]
[1755141303719,17.36430579,4748.3,4747.5,3.311]
[1755141303720,0.4719,4747.9,4747.5,3.311]
[1755141303921,0.4896,4748.2,4747.5,3.82997436]
[1755141304122,0.4719,4748.1,4747.5,3.311]
[1755141305209,0.4719,4748.6,4747.5,4.06175898]
[1755141305411,0.4719,4749.9,4748.2,0.75075898]
[1755141305628,0.4719,4749.9,4748.0,17.36430579]
[1755141305629,0.4719,4749.9,4749.0,0.75075898]
[1755141305835,0.4719,4749.9,4749.1,4.08475898]
[1755141305836,0.4896,4749.8,4749.1,4.08475898]
[1755141306044,0.4719,4749.7,4749.2,3.334]
[1755141306340,0.4896,4749.6,4749.2,3.334]
[1755141306544,0.9615,4749.5,4749.2,3.334]
[1755141306845,0.4719,4749.4,4749.2,3.334]
[1755141307132,0.4719,4749.9,4749.2,3.334]
[1755141307335,0.9615,4750.2,4749.2,4.1721]
[1755141309032,0.4719,4750.1,4749.2,4.1721]
[1755141309337,17.36430579,4749.5,4749.3,3.333]
[1755141309644,0.9615,4749.4,4749.3,3.333]
[1755141310118,0.4719,4749.4,4749.3,3.333]
[1755141310436,0.4719,4749.4,4749.3,3.33]
[1755141310843,0.4719,4749.4,4749.0,5.047]
[1755141311040,0.4719,4749.4,4749.3,3.33]
[1755141311615,0.9615,4749.4,4749.3,3.329]
[1755141312064,0.9615,4749.4,4749.0,5.047]
[1755141312239,17.36430579,4749.8,4749.0,5.047]
[1755141312561,17.36430579,4749.8,4748.2,5.046]
[1755141312713,17.36430579,4749.3,4748.3,3.326]
[1755141312917,0.4719,4749.4,4748.3,3.326]
[1755141314659,17.36430579,4750.2,4748.3,3.326]
[1755141314824,0.4719,4749.8,4748.4,1.6493846]
[1755141315025,0.4719,4749.8,4748.5,1.47113846]
[1755141315327,0.4719,4749.8,4748.5,1.52353846]
[1755141315830,0.4719,4749.8,4748.6,3.324]
[1755141317532,0.4719,4750.0,4748.6,3.324]
[1755141317734,0.4719,4750.0,4748.7,0.49351154]
[1755141318134,0.4719,4750.0,4748.8,3.789]
[1755141320054,17.83620579,4750.2,4748.9,4.29]
[1755141320351,17.36430579,4750.2,4749.0,4.29]
[1755141320543,17.36430579,4750.2,4748.8,3.789]
[1755141320544,0.4719,4750.1,4749.1,4.29]
[1755141320851,0.4719,4750.1,4749.2,3.317]
[1755141321054,0.4896,4750.0,4749.2,7.607]
[1755141321541,0.4429,4749.9,4749.2,7.607]
[1755141322450,0.4429,4749.9,4749.2,4.29]
[1755141322633,0.4429,4749.9,4749.3,3.316]
[1755141323351,0.4429,4749.9,4749.3,4.0766]
[1755141323557,17.34145487,4750.1,4749.3,4.0766]
[1755141325630,0.4429,4750.0,4749.3,8.3666]
[1755141327644,0.4429,4750.0,4749.3,4.0766]
[1755141327850,0.4429,4750.0,4749.4,3.31]
[1755141328156,0.4429,4750.0,4749.5,3.307]
[1755141328341,0.4662,4749.9,4749.5,3.307]
[1755141328537,0.9091,4749.8,4749.5,3.307]
[1755141328843,0.4429,4749.7,4749.5,3.307]
[1755141329355,0.4662,4749.7,4749.6,3.306]
[1755141329561,0.4662,4749.7,4749.6,3.305]
[1755141330057,0.9091,4749.7,4749.6,3.305]
[1755141330629,0.4429,4749.7,4749.6,3.305]
[1755141330827,17.34145487,4750.1,4749.6,3.305]
[1755141331064,0.4429,4750.1,4749.7,3.305]
[1755141331267,0.4429,4750.1,4749.8,3.305]
[1755141331484,0.4429,4750.8,4749.9,3.303]
[1755141331756,0.4429,4750.8,4749.9,3.783]
[1755141332758,0.4429,4751.3,4749.9,3.303]
[1755141332972,0.4429,4751.4,4750.0,0.3783]
[1755141333134,0.4429,4751.4,4750.0,0.8583]
[1755141333343,0.4429,4751.4,4750.1,0.53416846]
[1755141333539,17.34145487,4752.0,4750.1,1.06656846]
[1755141333750,0.4429,4751.9,4750.2,0.5324]
[1755141333942,0.4429,4751.9,4750.3,0.0524]
[1755141334143,0.4429,4751.9,4750.4,8.56745531]
[1755141334341,0.75282251,4754.0,4750.4,8.56745531]
[1755141334342,0.4662,4752.4,4750.4,9.69543991]
[1755141334568,0.4429,4752.2,4750.5,1.6603846]
[1755141334757,0.4429,4752.2,4750.6,1.6603846]
[1755141334956,0.4429,4752.6,4750.7,1.6079846]
[1755141335269,17.78435487,4752.6,4750.8,1.27442623]
[1755141335476,17.78435487,4752.6,4750.9,4.4299846]
[1755141335669,17.34145487,4752.1,4751.0,1.1279846]
[1755141335973,17.78435487,4752.1,4751.0,3.301]
[1755141336147,0.4429,4752.6,4751.1,0.53416846]
[1755141336347,17.34145487,4751.8,4751.1,0.53416846]
[1755141336552,17.34145487,4751.8,4751.2,3.301]
[1755141336553,17.78435487,4751.8,4751.2,3.301]
[1755141336748,3.301,4753.9,4751.2,3.301]
[1755141336961,17.34145487,4752.0,4751.3,0.3301]
[1755141337160,0.4429,4751.9,4751.3,3.302]
[1755141337566,0.4429,4751.9,4750.8,0.74202623]
[1755141337953,0.4429,4751.9,4750.9,3.301]
[1755141338161,0.4662,4751.8,4750.8,0.74202623]
[1755141338356,0.4429,4751.7,4750.9,3.48800108]
[1755141338563,0.4429,4751.7,4750.9,3.301]
[1755141338874,17.34145487,4751.5,4751.0,3.301]
[1755141339089,0.9091,4751.4,4751.1,3.3]
[1755141339289,0.9091,4751.4,4750.4,5.045]
[1755141339491,17.34145487,4751.0,4750.5,3.3]
[1755141339651,0.9091,4750.9,4750.5,3.3]
[1755141340179,0.9091,4750.8,4750.5,3.3]
[1755141340358,17.34145487,4751.0,4750.5,3.3]
[1755141340564,0.9091,4750.7,4750.5,3.3]
[1755141340763,0.9091,4750.6,4750.5,4.29]
[1755141340961,0.9091,4750.6,4750.5,7.589]
[1755141341364,0.9091,4750.6,4750.5,7.588]
[1755141342175,0.9091,4750.6,4750.5,4.29]
[1755141342380,0.9091,4750.6,4750.5,3.298]
[1755141342581,0.4429,4750.6,4750.5,3.298]
[1755141342950,17.34145487,4751.5,4750.5,4.1323]
[1755141343282,0.34562745,4753.8,4750.5,4.1323]
[1755141343283,0.4429,4751.4,4750.5,3.298]
[1755141343998,17.34145487,4752.2,4750.5,3.298]
[1755141344194,0.4662,4752.3,4750.6,4.8224]
[1755141344351,0.4429,4752.5,4750.5,3.298]
[1755141344352,0.4429,4752.5,4750.7,4.8224]
[1755141344683,0.4429,4752.5,4750.8,4.8224]
[1755141344984,17.34145487,4752.8,4750.9,9.04523846]
[1755141345182,17.34145487,4752.8,4751.0,4.29]
[1755141345383,17.34145487,4752.8,4751.0,4.8224]
[1755141345684,17.34145487,4752.8,4751.1,0.5324]
[1755141346187,0.4429,4752.9,4751.2,0.0524]
[1755141346380,0.4429,4752.9,4751.3,0.57081154]
[1755141346567,0.4429,4752.9,4751.4,3.777]
[1755141346888,0.4662,4752.8,4751.5,3.296]
[1755141347088,0.4662,4752.8,4751.6,0.38668115]
[1755141347379,0.4429,4752.7,4751.7,3.296]
[1755141348955,0.4429,4753.3,4751.8,0.48]
[1755141349156,0.4429,4753.7,4751.8,0.48]
[1755141349357,0.4429,4753.7,4751.9,0.43524]
[1755141349795,14.5,4753.1,4752.0,0.48]
[1755141350692,14.5,4753.1,4752.1,0.0524]
[1755141350890,14.5,4753.1,4752.1,0.20706561]
[1755141351064,14.5,4753.1,4752.2,0.69978902]
[1755141351259,14.5,4753.1,4752.3,3.7759]
[1755141351522,14.5,4753.1,4752.4,3.292]
[1755141351802,0.9023,4755.1,4752.5,3.3444]
[1755141352007,0.9023,4755.0,4752.6,5.5783]
[1755141352170,14.9419,4754.9,4752.7,0.5353]
[1755141352365,14.5,4754.9,4752.8,0.4829]
[1755141352593,14.5,4754.9,4752.9,0.0524]
[1755141352764,14.5,4754.9,4753.0,0.591274]
[1755141353085,14.5,4754.9,4753.1,0.5353]
[1755141353293,14.5,4754.9,4753.2,3.3494]
[1755141353490,14.5,4754.9,4753.3,0.5353]
[1755141353863,0.4419,4754.8,4753.3,0.4829]
[1755141354062,0.4419,4754.8,4752.6,5.37744]
[1755141354063,1.54023,4754.7,4753.4,3.296]
[1755141354364,1.54023,4754.7,4752.6,5.37744]
[1755141354365,0.9023,4754.6,4753.5,3.296]
[1755141354566,0.9023,4754.6,4753.6,3.299]
[1755141354798,0.9023,4754.5,4753.7,3.299]
[1755141355098,0.9023,4754.4,4753.8,3.299]
[1755141355272,1.146553,4754.3,4753.8,3.299]
[1755141355478,15.4023,4754.2,4753.9,3.298]
[1755141355673,0.9023,4754.1,4754.0,3.298]
[1755141355875,0.01,4754.0,4752.6,5.043]
[1755141356099,2.10112725,4753.9,4752.6,5.043]
[1755141356305,14.5,4753.1,4752.6,5.043]
[1755141356592,0.9023,4753.0,4752.6,5.043]
[1755141356965,0.4419,4752.9,4752.7,3.297]
[1755141357189,14.5,4752.8,4752.6,5.043]
[1755141357375,14.5,4752.8,4752.7,3.297]
[1755141358773,14.5,4752.8,4752.7,8.421]
[1755141359492,0.4419,4753.7,4752.7,8.9039]
[1755141359694,0.4419,4753.7,4752.8,4.29]
[1755141359993,14.5,4753.6,4752.8,4.29]
[1755141360682,14.5,4753.6,4752.9,4.29]
[1755141360871,14.5,4753.6,4753.0,0.66165]
[1755141361380,14.5,4753.6,4753.1,3.294]
[1755141361578,14.9419,4753.6,4753.1,3.294]
[1755141362005,0.4419,4753.5,4753.1,3.294]
[1755141362706,0.4419,4753.4,4753.1,3.294]
[1755141362913,0.4419,4753.4,4753.0,0.66165]
[1755141362914,14.5,4753.6,4753.2,3.293]
[1755141363070,0.4419,4753.3,4753.2,3.293]
[1755141363665,14.5,4753.6,4753.2,3.293]
[1755141364170,0.9023,4753.5,4753.3,3.292]
[1755141364365,0.4419,4753.5,4753.3,3.292]
[1755141365382,14.5,4753.6,4753.3,3.292]
[1755141365584,0.4419,4753.5,4753.3,3.292]
[1755141365798,0.4419,4753.5,4753.4,4.29]
[1755141365978,14.5,4753.6,4753.4,4.29]
[1755141365979,14.5,4753.6,4753.4,8.3382]
[1755141366181,14.5,4753.6,4753.4,7.58]
[1755141366598,0.4419,4753.5,4753.4,7.58]
[1755141368496,0.9023,4753.5,4753.4,3.288]
[1755141368899,0.9023,4753.5,4752.9,4.29]
[1755141369073,0.9023,4753.4,4753.0,3.286]
[1755141369267,0.9023,4753.4,4752.7,4.29]
[1755141369495,0.4419,4753.3,4752.8,7.576]
[1755141369695,0.4419,4753.3,4752.6,5.043]
[1755141369696,0.4419,4753.3,4752.9,4.29]
[1755141369868,0.4604,4753.2,4753.0,3.285]
[1755141370071,0.4604,4753.2,4753.1,3.285]
[1755141370501,14.9604,4753.2,4753.1,3.285]
[1755141370703,15.4023,4753.2,4753.1,3.285]
[1755141370918,15.4023,4753.2,4753.1,3.286]
[1755141371073,17.69918101,4753.2,4750.9,5.041]
[1755141371277,37.48742943,4752.7,4750.9,5.041]
[1755141371591,0.9023,4752.6,4750.9,5.041]
[1755141371782,14.5,4752.3,4750.9,5.041]
[1755141372176,0.9023,4752.2,4751.0,3.288]
[1755141372397,0.9023,4752.2,4751.1,0.8329]
[1755141372825,0.9023,4752.2,4751.2,8.329]
[1755141373413,0.9023,4752.2,4751.2,5.041]
[1755141373611,0.9023,4752.1,4751.2,5.041]
[1755141373910,0.9023,4752.1,4751.3,3.287]
[1755141373911,0.9023,4752.0,4751.3,3.287]
[1755141374128,39.58855668,4753.2,4751.3,3.287]
[1755141374129,0.4419,4752.9,4751.3,3.287]
[1755141374431,0.9023,4752.8,4751.2,5.041]
[1755141374598,14.5,4751.9,4751.3,3.304]
[1755141374920,0.4419,4751.8,4751.2,5.041]
[1755141375083,0.4419,4751.8,4751.4,3.304]
[1755141375290,0.4419,4751.7,4751.4,3.304]
[1755141375512,14.9419,4751.6,4751.4,3.304]
[1755141375698,14.5,4751.6,4751.2,5.041]
[1755141375901,14.5,4751.6,4751.3,3.303]
[1755141376616,14.5,4751.6,4751.4,4.7729]
[1755141376818,0.4419,4752.6,4751.5,4.7729]
[1755141376996,0.4419,4752.6,4751.6,0.99155]
[1755141377204,14.5,4752.5,4751.7,3.301]
[1755141377594,14.5,4752.5,4751.7,7.591]
[1755141377825,14.5,4752.5,4751.8,4.29]
[1755141377987,14.5,4752.5,4751.8,4.7729]
[1755141378194,14.5,4752.5,4751.9,0.5041]
[1755141378494,0.4419,4753.4,4751.9,0.5041]
[1755141378817,0.4419,4753.4,4752.0,0.4829]
[1755141379020,14.5,4753.3,4752.1,3.302]
[1755141379337,14.5,4753.3,4752.2,1.02983846]
[1755141379507,14.5,4753.3,4752.2,2.15782306]
[1755141379893,14.5,4753.3,4752.2,2.21022306]
[1755141380495,14.5,4753.3,4752.3,1.1279846]
[1755141380694,14.5,4753.3,4752.4,1.1279846]
[1755141380888,14.5,4753.3,4752.5,4.97396691]
[1755141381091,14.5,4753.3,4752.5,4.4279846]
[1755141381402,14.5,4753.3,4752.6,1.6088846]
[1755141381618,0.4647,4754.0,4752.6,1.6088846]
[1755141382325,14.5,4753.7,4752.6,1.6088846]
[1755141382524,14.5,4753.7,4752.7,0.49612846]
[1755141383309,14.5,4753.7,4752.7,1.62411306]
[1755141383618,14.5,4753.7,4752.8,4.29]
[1755141384017,14.5,4753.7,4752.9,4.29]
[1755141384229,14.5,4753.7,4752.7,1.62411306]
[1755141384230,14.5,4753.7,4753.0,7.586]
[1755141384432,14.5,4753.7,4753.0,4.29]
[1755141384433,0.9209,4753.6,4753.0,4.29]
[1755141384619,0.9209,4753.6,4753.1,3.296]
[1755141384813,0.4547,4753.5,4753.1,3.296]
[1755141385018,14.5,4753.7,4753.1,3.296]
[1755141385243,14.5,4753.7,4753.2,0.7586]
[1755141385851,0.01,4754.0,4753.3,0.4809]
[1755141386052,0.01,4754.0,4753.4,5.041]
[1755141386216,14.5,4753.9,4753.4,5.041]
[1755141386720,14.5,4753.9,4753.5,3.296]
[1755141386918,0.01,4754.0,4753.6,0.73705]
[1755141387643,0.9209,4753.9,4753.7,3.294]
[1755141387856,0.4662,4753.9,4753.7,3.294]
[1755141388047,0.01,4754.0,4753.7,3.294]
[1755141388048,0.4547,4753.8,4753.7,3.294]
[1755141388221,0.01,4754.0,4753.7,3.294]
[1755141389020,0.4647,4754.0,4753.7,3.294]
[1755141389652,0.01,4754.0,4753.7,3.294]
[1755141389855,0.9209,4753.9,4753.7,3.294]
[1755141390059,0.4547,4753.8,4753.7,3.294]
[1755141390653,0.01,4754.0,4753.7,3.294]
[1755141390856,0.01,4754.0,4753.8,0.8335]
[1755141392765,0.01,4754.0,4753.9,0.4809]
[1755141393533,0.01,4754.0,4753.8,0.8335]
[1755141393733,0.4647,4754.0,4753.9,3.289]
[1755141393963,0.01,4754.0,4753.9,3.289]
[1755141394140,0.01,4754.0,4753.9,3.70125]
[1755141396339,0.4647,4754.0,4753.9,3.70125]
[1755141396753,0.4647,4754.0,4753.9,3.289]
[1755141396948,0.9309,4754.0,4753.9,3.287]
[1755141398037,0.9309,4754.0,4753.4,5.041]
[1755141398266,0.9209,4753.9,4753.5,3.286]
[1755141398438,0.4547,4753.9,4753.5,3.286]
[1755141398639,15.4209,4753.8,4753.4,5.041]
[1755141398847,0.9209,4753.7,4753.5,3.287]
[1755141399065,0.9209,4753.6,4753.4,5.041]
[1755141399356,14.5,4753.8,4753.5,3.287]
[1755141399562,14.5,4753.8,4753.5,3.7911]
[1755141399736,0.01,4754.0,4753.5,4.272]
[1755141399941,0.01,4754.0,4753.5,3.7911]
[1755141400159,0.01,4754.0,4753.6,0.4809]
[1755141400356,0.01,4754.0,4753.7,0.9313]
[1755141400537,0.01,4754.0,4753.8,3.291]
[1755141402842,0.01,4754.0,4753.8,3.7719]
[1755141403554,0.01,4754.0,4753.9,0.4809]
[1755141404072,0.01,4754.0,4753.8,3.291]
[1755141404368,0.01,4754.0,4753.9,0.56435]
[1755141404568,0.01,4754.0,4753.9,3.287]
[1755141404981,0.4647,4754.0,4753.9,3.287]
[1755141405275,0.01,4754.0,4753.9,3.287]
[1755141406174,0.01,4754.0,4753.9,4.8958846]
[1755141406374,0.01,4754.0,4753.9,3.7679]
[1755141406547,0.01,4754.0,4753.9,4.20233]
[1755141407348,0.00207201,4754.0,4753.9,5.69092182]
[1755141407785,0.00207201,4754.0,4753.9,4.20233]
[1755141407975,0.00207201,4754.0,4753.9,53.24975943]
[1755141408354,0.4547,4756.2,4753.9,53.24975943]
[1755141408556,0.4547,4756.2,4755.4,1.11539895]
[1755141408775,0.4662,4756.5,4755.5,3.286]
[1755141408955,0.4662,4756.5,4755.4,1.11539895]
[1755141408956,0.9209,4756.4,4755.7,1.11539895]
[1755141409156,0.4547,4756.3,4755.8,3.286]
[1755141409878,0.4662,4756.2,4755.8,3.286]
[1755141410185,0.4547,4756.8,4755.8,3.66803]
[1755141410888,0.4662,4756.7,4755.6,6.15539895]
[1755141411066,0.4547,4756.6,4755.7,3.291]
[1755141412460,0.4821,4756.5,4755.5,1.11539895]
[1755141412660,0.4326,4756.4,4755.6,8.328]
[1755141412965,0.4821,4756.3,4755.7,3.289]
[1755141413376,0.4821,4756.3,4755.8,3.289]
[1755141413377,0.4326,4756.2,4755.8,3.289]
[1755141413583,0.4821,4756.7,4755.8,3.289]
[1755141413880,0.4326,4756.1,4755.9,3.288]
[1755141414094,0.9147,4756.0,4755.6,5.039]
[1755141414306,0.9147,4755.9,4755.7,3.288]
[1755141414504,0.9147,4755.8,4755.7,3.288]
[1755141414805,0.9147,4755.8,4755.7,3.287]
[1755141415396,0.9147,4755.8,4755.6,5.039]
[1755141415601,0.4821,4755.8,4755.7,3.287]
[1755141416283,0.9147,4755.8,4755.7,3.287]
[1755141416482,0.9147,4755.8,4755.6,5.039]
[1755141416793,0.9147,4755.8,4755.7,3.286]
[1755141416794,0.4821,4755.8,4755.7,3.286]
[1755141416998,0.4821,4756.5,4755.7,3.286]
[1755141417397,0.4326,4756.7,4755.7,3.286]
[1755141417696,0.4821,4757.0,4755.7,3.286]
[1755141417913,0.4821,4757.0,4755.8,11.43]
[1755141418296,0.4326,4756.9,4755.8,11.43]
[1755141418693,0.4326,4756.9,4755.9,11.43]
[1755141418923,0.4326,4756.9,4755.9,14.716]
[1755141419585,0.4326,4756.9,4756.0,4.29]
[1755141419786,0.4326,4756.9,4756.1,4.29]
[1755141420002,0.4326,4756.9,4756.2,7.576]
[1755141420201,0.4326,4756.9,4756.3,3.286]
[1755141420392,0.4326,4756.9,4756.4,3.286]
[1755141420593,37.48742943,4758.5,4756.4,3.286]
[1755141420594,0.4326,4757.3,4756.4,3.286]
[1755141421907,0.4326,4757.3,4756.5,3.283]
[1755141422119,0.4326,4757.3,4755.6,5.039]
[1755141422120,0.4821,4757.2,4756.6,3.283]
[1755141422319,0.4326,4757.1,4756.6,3.283]
[1755141422611,0.9147,4757.0,4755.6,6.15439895]
[1755141422785,0.9147,4756.9,4755.6,5.039]
[1755141423112,0.21011272,4758.3,4755.6,5.039]
[1755141423113,0.9147,4756.8,4755.7,3.284]
[1755141423316,0.4821,4756.8,4755.7,3.284]
[1755141423521,0.4326,4756.7,4755.7,3.284]
[1755141423686,0.4821,4756.6,4755.8,3.284]
[1755141424025,0.4326,4756.5,4755.8,3.284]
[1755141424202,0.4821,4756.4,4755.8,3.284]
[1755141424722,0.4326,4756.3,4755.9,3.282]
[1755141424892,0.4821,4756.2,4755.9,3.282]
[1755141425088,0.4326,4756.1,4755.9,3.282]
[1755141425427,0.4326,4756.0,4755.9,3.282]
[1755141425806,0.9147,4756.0,4755.9,3.282]
[1755141427922,0.9147,4756.0,4755.6,5.039]
[1755141428120,0.9147,4755.9,4755.6,5.039]
[1755141428326,0.19556882,4757.4,4755.7,3.279]
[1755141428513,0.19556882,4757.4,4755.6,5.039]
[1755141428514,0.9147,4755.8,4755.6,5.039]
[1755141428712,17.29657691,4756.2,4755.6,5.039]
[1755141428915,17.29657691,4756.2,4755.7,3.279]
[1755141429107,1.72965769,4756.1,4755.8,3.279]
[1755141429312,2.64435769,4756.1,4755.4,3.279]
[1755141429606,17.29657691,4755.7,4753.7,1.11539895]
[1755141429831,0.9147,4755.6,4753.7,1.11539895]
[1755141430129,0.9147,4755.6,4753.7,5.038]
[1755141430427,17.29657691,4754.3,4753.7,5.038]
[1755141430628,2.10209169,4757.2,4753.7,5.038]
[1755141430629,0.9147,4754.2,4753.8,3.282]
[1755141430807,37.50437243,4755.1,4753.9,3.282]
[1755141431008,0.9147,4754.1,4753.9,3.282]
[1755141431205,0.9147,4754.0,4753.9,3.282]
[1755141431730,0.9147,4754.0,4753.9,3.281]
[1755141432117,0.9147,4754.0,4753.9,3.283]
[1755141432738,0.9147,4754.0,4752.3,1.11539895]
[1755141433029,37.50437243,4754.4,4752.3,0.61543989]
[1755141433030,0.9147,4753.9,4752.3,0.61543989]
[1755141433208,0.4326,4753.8,4752.3,0.61543989]
[1755141433409,0.9147,4753.8,4752.3,0.61543989]
[1755141433831,0.4821,4753.8,4752.3,0.61543989]
[1755141434030,0.9147,4753.7,4752.4,3.281]
[1755141434202,0.4326,4753.6,4752.4,3.281]
[1755141434631,0.4821,4753.5,4752.4,3.281]
[1755141434944,0.4326,4753.4,4752.4,3.281]
[1755141435146,0.4821,4753.3,4752.4,3.281]
[1755141435448,0.4326,4753.2,4752.4,3.281]
[1755141435650,0.4326,4753.2,4752.5,3.28]
[1755141435938,0.4326,4753.2,4751.7,5.039]
[1755141435939,0.4326,4753.2,4752.6,3.28]
[1755141436140,0.4326,4753.2,4752.7,3.28]
[1755141436360,37.50437243,4754.5,4752.7,3.28]
[1755141436640,3.01582725,4754.4,4752.7,3.28]
[1755141437152,0.9147,4754.3,4752.7,3.28]
[1755141437660,37.50437243,4753.8,4752.7,3.28]
[1755141438152,0.1048,4755.3,4752.7,3.28]
[1755141438153,0.4326,4753.7,4752.7,3.28]
[1755141438850,0.4821,4754.1,4752.7,3.28]
[1755141438851,0.9147,4754.1,4752.7,3.28]
[1755141439429,0.4326,4754.1,4752.7,3.28]
[1755141439632,0.4326,4754.1,4752.8,0.38008]
[1755141439837,0.4326,4754.1,4752.8,0.84848]
[1755141440349,0.4821,4754.5,4752.8,0.84848]
[1755141440555,0.9147,4754.5,4752.8,0.84848]
[1755141441439,0.4723,4754.7,4752.9,0.5068]
[1755141441638,0.4723,4754.7,4753.0,0.469088]
[1755141441839,0.4723,4754.7,4753.1,0.4544]
[1755141442239,0.4723,4755.1,4753.2,0.0524]
[1755141442529,0.4723,4755.4,4753.3,0.4544]
[1755141442867,0.4723,4755.4,4753.4,3.3314]
[1755141443163,0.4723,4755.8,4753.5,0.99691989]
[1755141443332,0.4723,4755.8,4753.5,0.49011989]
[1755141443533,0.475,4756.2,4753.6,1.62219895]
[1755141443738,0.4723,4756.1,4753.7,0.5068]
[1755141443955,0.4723,4756.1,4753.7,1.62219895]
[1755141444153,0.475,4756.0,4753.8,0.53913188]
[1755141444361,0.4723,4755.9,4753.9,5.04]
[1755141444557,0.475,4755.8,4753.9,5.04]
[1755141444859,0.4723,4755.7,4754.0,3.279]
[1755141445060,37.97667243,4755.7,4754.0,3.279]
[1755141445358,37.97667243,4755.7,4753.9,5.04]
[1755141445359,3.04842725,4755.6,4754.1,3.279]
[1755141445760,0.9473,4755.5,4754.1,3.279]
[1755141446229,0.9473,4755.4,4754.1,3.279]
[1755141446430,3.04842725,4755.3,4754.1,3.279]
[1755141446670,0.9473,4755.2,4754.1,3.279]
[1755141447150,0.9473,4755.1,4754.1,3.279]
[1755141447352,0.9473,4755.0,4753.9,5.04]
[1755141447553,0.475,4755.0,4754.0,3.279]
[1755141447743,0.4723,4754.9,4754.0,3.279]
[1755141448574,0.475,4754.8,4754.0,3.279]
[1755141448733,0.61175255,4754.8,4753.9,5.04]
[1755141448932,0.4723,4754.7,4753.9,5.04]
[1755141449139,0.475,4754.6,4753.9,5.04]
[1755141449373,0.4723,4754.5,4754.0,3.279]
[1755141449834,0.475,4754.4,4754.0,3.279]
[1755141450033,0.475,4754.4,4753.9,5.04]
[1755141450034,0.4723,4754.3,4754.1,3.279]
[1755141450363,0.475,4754.2,4754.1,3.279]
[1755141450658,0.475,4754.2,4753.9,5.04]
[1755141450659,0.9473,4754.2,4753.9,5.04]
[1755141450830,0.4723,4754.1,4754.0,3.279]
[1755141451032,0.4723,4754.1,4752.5,0.4544]
[1755141451228,0.4723,4754.1,4752.6,8.319]
[1755141451433,0.13675255,4754.8,4752.7,0.88258]
[1755141451736,0.4723,4754.7,4752.7,1.38938]
[1755141451931,0.4723,4754.7,4752.8,0.4544]
[1755141452241,0.475,4754.6,4752.9,8.318]
[1755141452441,0.4723,4754.5,4752.9,8.318]
[1755141453364,0.4723,4754.5,4752.9,5.04]
[1755141453569,0.475,4754.4,4753.0,3.279]
[1755141454064,0.4723,4754.3,4753.0,3.279]
[1755141454451,0.4723,4754.3,4753.0,3.89207]
[1755141454651,0.4723,4754.3,4753.1,3.279]
[1755141455049,0.4723,4754.3,4753.0,0.61307]
[1755141455247,0.4723,4754.3,4753.1,3.279]
[1755141455478,0.4723,4754.3,4753.2,3.279]
[1755141456975,0.475,4754.8,4753.2,3.279]
[1755141456976,0.9473,4754.8,4753.2,3.279]
[1755141457140,0.475,4755.2,4753.3,0.4544]
[1755141457339,0.475,4755.2,4753.4,1.0465199]
[1755141457536,0.4723,4755.1,4753.4,2.10951885]